lending/lending_fUSD_20260204
["ID","MTS","AMOUNT","RATE_DAILY","PERIOD"]
[404469890,1770169838670,-892.94,0.0001688,2]
[404469891,1770169838679,-726.17799843,0.00017018,2]
[404469892,1770169838689,-839.0,0.0001704,2]
[404469893,1770169838699,-1587.72,0.00017072,2]
[404469894,1770169838709,-195.0,0.00017119,2]
[404469895,1770169838719,-200.0,0.00017119,2]
[404469896,1770169838728,-500.0,0.00017123,2]
[404469897,1770169838739,-500.0,0.00017151,2]
[404469898,1770169838749,-166.66,0.00017165,2]
[404469899,1770169838758,-200.0,0.00017174,2]
[404469900,1770169838768,-413.15228593,0.00017209,2]
[404469901,1770169838777,-1214.0,0.00017209,2]
[404469902,1770169838787,-600.0,0.00017223,2]
[404469903,1770169838796,-195.0,0.00017223,2]
[404469904,1770169838806,-2550.73238966,0.00017226,2]
[404469905,1770169838815,-200.0,0.00017226,2]
[404469906,1770169838824,-1000.0,0.0001726,2]
[404469907,1770169838835,-500.0,0.0001726,2]
[404469908,1770169838844,-5888.0,0.000173,2]
[404469909,1770169838853,-200.0,0.00017322,2]
[404469910,1770169838862,-359.0911181,0.0001733,2]
[404469912,1770169838872,-502.55699706,0.00017421,2]
[404469914,1770169838882,-800.43,0.0001745,2]
[404469916,1770169838891,-879.0,0.00017453,2]
[404469917,1770169838900,-200.0,0.00017462,2]
[404469918,1770169838909,-160.0,0.00017472,2]
[404469919,1770169838919,-166.66,0.00017498,2]
[404469920,1770169838929,-503.23813055,0.00017534,2]
[404469921,1770169838938,-1000.0,0.00017534,2]
[404469922,1770169838948,-879.0,0.00017588,2]
[404469923,1770169838958,-3414.2076,0.00017598,2]
[404469924,1770169838967,-237.3358,0.00017598,2]
[404469925,1770169838981,-3443.0,0.000176,2]
[404469926,1770169838991,-200.0,0.00017631,2]
[404469927,1770169839001,-168.399715,0.0001764,2]
[404469928,1770169839011,-5888.0,0.0001766,2]
[404469929,1770169839020,-35768.0,0.00017673,2]
[404469930,1770169839030,-900.0,0.00017703,2]
[404469931,1770169839040,-879.0,0.00017712,2]
[404469932,1770169839050,-892.94,0.00017723,2]
[404469933,1770169839060,-1031.979,0.0001773,2]
[404469934,1770169839069,-200.0,0.0001777,2]
[404469935,1770169839079,-2500.0,0.000178,2]
[404469936,1770169839090,-341.10239401,0.00017806,2]
[404469937,1770169839100,-900.17461455,0.00017806,2]
[404469938,1770169839110,-1588.01472117,0.00017806,2]
[404469939,1770169839120,-2375.57504994,0.00017806,2]
[404469940,1770169839130,-3214.233,0.00017806,2]
[404469941,1770169839140,-1000.0,0.00017808,2]
[404469942,1770169839149,-500.0,0.0001781,2]
[404469943,1770169839159,-500.0,0.0001781,2]
[404469944,1770169839171,-1336.611,0.00017812,2]
[404469945,1770169839180,-3497.849,0.00017812,2]
[404469946,1770169839189,-162.315,0.00017812,2]
[404469947,1770169839199,-1438.086,0.00017812,2]
[404469948,1770169839208,-616.0,0.00017812,2]
[404469949,1770169839217,-150.089,0.00017812,2]
[404469950,1770169839228,-1273.605,0.00017812,2]
[404469951,1770169839238,-6580.0,0.00017812,2]
[404469952,1770169839248,-568.0,0.00017812,2]
[404469953,1770169839258,-3253.0,0.00017812,2]
[404469954,1770169839268,-500.0,0.00017819,2]
[404469955,1770169839277,-183.36466999,0.00017819,2]
[404469956,1770169839287,-2000.0,0.0001782,2]
[404469957,1770169839296,-2000.0,0.0001782,2]
[404469958,1770169839306,-2000.0,0.0001782,2]
[404469959,1770169839315,-2000.0,0.0001782,2]
[404469960,1770169839326,-297.0,0.00017863,2]
[404469961,1770169839337,-3446.33153693,0.00017878,2]
[404469962,1770169839346,-3446.33153693,0.00017889,2]
[404469963,1770169839361,-500.0,0.00017899,2]
[404469964,1770169839372,-500.0,0.00017899,2]
[404469965,1770169839384,-2082.28480789,0.000179,2]
[404469966,1770169839395,-203.74540762,0.000179,2]
[404469967,1770169839406,-1000.0,0.000179,2]
[404469968,1770169839415,-33295.0562,0.000179,2]
[404469969,1770169839425,-500.0,0.000179,2]
[404469970,1770169839437,-10456.99944312,0.000179,3]
[404469971,1770169839446,-160.0,0.000179,3]
[404469972,1770169839456,-10000.0,0.000179,2]
[404469973,1770169839466,-3446.33153693,0.000179,2]
[404469974,1770169839475,-3614.5585766,0.000179,2]
[404469975,1770169839485,-5189.22795331,0.000179,2]
[404469976,1770169839494,-163.42365521,0.00017973,2]
[404469977,1770169839503,-500.76168276,0.00017973,2]
[404469978,1770169839513,-500.0,0.00017973,2]
[404469979,1770169839522,-500.0,0.00017973,2]
[404469980,1770169839534,-500.0,0.00017973,2]
[404469981,1770169839547,-500.0,0.00017973,2]
[404469982,1770169839558,-574.32162507,0.00017973,2]
[404469983,1770169839567,-500.45952925,0.00017973,2]
[404469984,1770169839576,-500.88176854,0.00017973,2]
[404469985,1770169839586,-500.0,0.00017973,2]
[404469986,1770169839597,-501.6684534,0.00017973,2]
[404469987,1770169839607,-500.0,0.00017973,2]
[404469988,1770169839616,-500.0,0.00017973,2]
[404469989,1770169839625,-500.26154091,0.00017973,2]
[404469990,1770169839634,-500.0,0.00017973,2]
[404469991,1770169839644,-500.0,0.00017973,2]
[404469992,1770169839653,-500.0,0.00017973,2]
[404469993,1770169839663,-194.67512814,0.00017973,2]
[404469994,1770169839672,-500.94788622,0.00017973,2]
[404469995,1770169839681,-464.69576793,0.00017973,2]
[404469996,1770169839691,-500.29028112,0.00017973,2]
[404469997,1770169839700,-201.06626377,0.00017973,2]
[404469998,1770169839709,-500.0,0.00017973,2]
[404469999,1770169839721,-501.26072405,0.00017973,2]
[404470000,1770169839730,-501.51606492,0.00017973,2]
[404470001,1770169839740,-500.0,0.00017973,2]
[404470002,1770169839750,-500.0,0.00017973,2]
[404470003,1770169839760,-415.33554184,0.00017973,2]
[404470004,1770169839770,-500.46303383,0.00017973,2]
[404470005,1770169839779,-500.0,0.00017973,2]
[404470006,1770169839788,-163.1999173,0.00017973,2]
[404470007,1770169839799,-500.0,0.00017973,2]
[404470008,1770169839808,-286.28,0.00017973,2]
[404470009,1770169839818,-170.0,0.0001799,2]
[404470010,1770169839828,-151.0,0.00017997,2]
[404470011,1770169839839,-500.0,0.00017998,2]
[404470012,1770169839848,-500.0,0.00017998,2]
[404470013,1770169839859,-1116.99715737,0.00017999,2]
[404470014,1770169839868,-1438.04594069,0.00017999,5]
[404470015,1770169839879,-1438.04594069,0.00017999,5]
[404470016,1770169839888,-300.0,0.00017999,2]
[404470017,1770169839899,-300.0,0.00017999,2]
[404470018,1770169839908,-300.0,0.00017999,2]
[404470019,1770169839922,-157.68754258,0.00017999,2]
[404470020,1770169839931,-300.0,0.00017999,2]
[404470021,1770169839942,-500.0,0.00017999,2]
[404470022,1770169839953,-500.0,0.00017999,2]
[404470023,1770169839964,-500.0,0.00017999,2]
[404470024,1770169839973,-500.0,0.00017999,2]
[404470025,1770169839986,-500.0,0.00017999,2]
[404470026,1770169839995,-500.0,0.00017999,2]
[404470027,1770169840005,-500.0,0.00017999,2]
[404470028,1770169840015,-500.0,0.00017999,2]
[404470029,1770169840027,-500.0,0.00017999,2]
[404470030,1770169840038,-500.0,0.00017999,2]
[404470031,1770169840048,-500.0,0.00017999,2]
[404470032,1770169840058,-500.0,0.00017999,2]
[404470033,1770169840067,-500.0,0.00017999,2]
[404470034,1770169840076,-506.93573963,0.00017999,2]
[404470035,1770169840087,-300.0,0.00017999,2]
[404470036,1770169840096,-666.0,0.00017999,2]
[404470037,1770169840105,-300.0,0.00017999,2]
[404470038,1770169840116,-893.16,0.00017999,2]
[404470039,1770169840125,-893.16,0.00017999,2]
[404470040,1770169840136,-893.16,0.00017999,2]
[404470041,1770169840145,-893.16,0.00017999,2]
[404470042,1770169840155,-893.16,0.00017999,2]
[404470043,1770169840165,-893.16,0.00017999,2]
[404470044,1770169840175,-893.16,0.00017999,2]
[404470045,1770169840184,-893.16,0.00017999,2]
[404470046,1770169840194,-893.16,0.00017999,2]
[404470047,1770169840203,-893.16,0.00017999,2]
[404470048,1770169840212,-893.16,0.00017999,2]
[404470049,1770169840221,-893.16,0.00017999,2]
[404470050,1770169840231,-893.16,0.00017999,2]
[404470051,1770169840240,-893.16,0.00017999,2]
[404470052,1770169840249,-893.16,0.00017999,2]
[404470053,1770169840258,-893.16,0.00017999,2]
[404470054,1770169840269,-893.16,0.00017999,2]
[404470055,1770169840278,-893.16,0.00017999,2]
[404470056,1770169840287,-893.16,0.00017999,2]
[404470057,1770169840296,-893.16,0.00017999,2]
[404470058,1770169840306,-893.16,0.00017999,2]
[404470059,1770169840319,-893.16,0.00017999,2]
[404470060,1770169840328,-893.16,0.00017999,2]
[404470061,1770169840338,-893.36315625,0.00017999,2]
[404470062,1770169840353,-200.0,0.00017999,2]
[404470063,1770169840365,-316.20499983,0.00017999,3]
[404470064,1770169840377,-417.24027743,0.00017999,2]
[404470065,1770169840386,-500.0,0.00017999,2]
[404470066,1770169840397,-500.0,0.00017999,2]
[404470067,1770169840407,-500.0,0.00017999,2]
[404470068,1770169840416,-500.0,0.00017999,2]
[404470069,1770169840426,-500.0,0.00017999,2]
[404470070,1770169840437,-500.0,0.00017999,2]
[404470071,1770169840448,-500.0,0.00017999,2]
[404470072,1770169840458,-500.0,0.00017999,2]
[404470073,1770169840467,-500.0,0.00017999,2]
[404470074,1770169840477,-500.0,0.00017999,2]
[404470075,1770169840488,-500.0,0.00017999,2]
[404470076,1770169840497,-500.0,0.00017999,2]
[404470077,1770169840507,-500.0,0.00017999,2]
[404470078,1770169840516,-500.0,0.00017999,2]
[404470079,1770169840526,-500.0,0.00017999,2]
[404470080,1770169840535,-500.0,0.00017999,2]
[404470081,1770169840545,-305.87628445,0.00017999,2]
[404470082,1770169840554,-500.0,0.00017999,2]
[404470083,1770169840564,-500.0,0.00017999,2]
[404470084,1770169840574,-500.0,0.00017999,2]
[404470085,1770169840583,-500.0,0.00017999,2]
[404470086,1770169840592,-506.96006571,0.00017999,2]
[404470087,1770169840602,-670.54214324,0.00017999,2]
[404470088,1770169840611,-12017.0,0.00018,2]
[404470089,1770169840621,-15942.73691563,0.00018,2]
[404470090,1770169840646,-696.6099996,0.00018,2]
[404470091,1770169840658,-2878.12978853,0.00018,2]
[404470092,1770169840669,-2161.0,0.00018,2]
[404470093,1770169840681,-4852.39229244,0.00018,2]
[404470094,1770169840969,-504.38,0.00018,2]
[404470096,1770169841019,-331.99982535,0.00018,2]
[404470097,1770169841030,-3209136.31039241,0.00018,2]
[404470100,1770169844045,-2237.26475202,0.00018,2]
[404470101,1770169844058,-564.79232668,0.00018,2]
[404470102,1770169844905,-325.58015431,0.00018,2]
[404470103,1770169844920,-38440.99448149,0.00018,2]
[404470104,1770169844931,-263.95605343,0.00018,2]
[404470105,1770169844993,-887.1555738,0.00018,2]
[404470108,1770169845039,-5995.57415016,0.00018,2]
[404470115,1770169846428,-7733.00184269,0.00018,2]
[404470116,1770169846440,-26229.02784683,0.00018,2]
[404470117,1770169846481,-597.72123317,0.00018,2]
[404470118,1770169846537,-899.97372848,0.00018,2]
[404470119,1770169846548,-3467.69524652,0.00018,2]
[404470120,1770169846750,-3840.0,0.00018,2]
[404470328,1770170580739,231.0,0.00022,120]
[404470380,1770171031539,-452.85237945,0.00013868,2]
[404470381,1770171031561,-7477.33762055,0.00013868,2]
[404470382,1770171031570,-631.01264791,0.00013958,2]
[404470383,1770171031586,-568.98735209,0.00013958,2]
[404470384,1770171031595,-195.0,0.00013959,2]
[404470385,1770171031604,-600.0,0.00014051,2]
[404470386,1770171031613,-1119.45310176,0.0001408,2]
[404470389,1770171031628,-499.50294632,0.0001408,2]
[404470390,1770171031639,-1501.247996,0.0001408,2]
[404470408,1770171037530,-4000.0,0.0001408,2]
[404470416,1770171039627,-11748.82530609,0.0001408,2]
[404470417,1770171039639,-195.0,0.00014233,2]
[404470418,1770171039652,-300.0,0.00014353,2]
[404470419,1770171039666,-600.0,0.00014354,2]
[404470420,1770171039677,-600.0,0.00014354,2]
[404470421,1770171039690,-600.0,0.00014354,2]
[404470422,1770171039701,-195.0,0.00014468,2]
[404470423,1770171039713,-504.52897208,0.000146,2]
[404470424,1770171039729,-627.22641991,0.000146,2]
[404470425,1770171039741,-250.0,0.00015,2]
[404470426,1770171039753,-195.0,0.00015255,2]
[404470427,1770171039767,-600.0,0.00015255,2]
[404470428,1770171039781,-252.12374491,0.00015255,2]
[404470429,1770171039797,-195.0,0.00015255,2]
[404470430,1770171039809,-823.0,0.00015354,2]
[404470431,1770171039820,-2753.0054,0.00015518,2]
[404470432,1770171039829,-160.0,0.0001569,2]
[404470433,1770171039839,-432.37699523,0.00015761,2]
[404470434,1770171039849,-1653.05,0.00016,2]
[404470435,1770171039858,-1000.0,0.00016296,2]
[404470436,1770171039869,-1092.0,0.00016323,2]
[404470437,1770171039879,-4627.7,0.00016587,2]
[404470438,1770171039889,-200.0,0.00016704,2]
[404470439,1770171039898,-165.74,0.00016712,2]
[404470440,1770171039908,-500.0,0.0001674,2]
[404470441,1770171040243,-150.99,0.00016922,2]
[404470442,1770171040268,-150.0,0.00016953,2]
[404470443,1770171040284,-485.73479605,0.00016955,2]
[404470444,1770171040294,-2041.85,0.00016992,2]
[404470445,1770171040303,-300.0,0.00017,2]
[404470446,1770171040312,-8032.07,0.00017027,2]
[404470447,1770171040322,-500.0,0.00017076,2]
[404470448,1770171040331,-200.0,0.00017241,2]
[404470449,1770171040341,-1000.0,0.0001726,2]
[404470450,1770171040350,-312.31034828,0.00017294,2]
[404470451,1770171040359,-2000.0,0.00017531,2]
[404470452,1770171040369,-1000.0,0.00017534,2]
[404470453,1770171040378,-2000.0,0.00017588,2]
[404470454,1770171040387,-5888.0,0.00017595,2]
[404470455,1770171040396,-168.39971501,0.0001764,2]
[404470456,1770171040405,-5888.0,0.00017693,2]
[404470457,1770171040415,-164.708,0.0001777,2]
[404470458,1770171040424,-1183.955,0.0001777,2]
[404470459,1770171040433,-1000.0,0.000178,2]
[404470460,1770171040442,-10661.54443123,0.000178,2]
[404470461,1770171040496,-1048.13376877,0.000178,2]
[404470462,1770171040506,-2554.6292628,0.000178,2]
[404470463,1770171040515,-1000.0,0.00017808,2]
[404470464,1770171040525,-223.17892567,0.00017811,2]
[404470465,1770171040534,-2554.62926273,0.00017811,2]
[404470466,1770171040544,-213.0,0.00017812,2]
[404470467,1770171040555,-150.0,0.00017812,2]
[404470468,1770171040564,-171.937,0.00017812,2]
[404470469,1770171040574,-272.463,0.00017812,2]
[404470470,1770171040583,-150.685,0.00017812,2]
[404470471,1770171040592,-170.0,0.00017812,2]
[404470472,1770171040601,-150.076,0.00017812,2]
[404470473,1770171040610,-150.0,0.00017812,2]
[404470474,1770171040618,-150.0,0.00017812,2]
[404470475,1770171040627,-151.0,0.00017812,2]
[404470476,1770171040636,-150.127,0.00017812,2]
[404470477,1770171040645,-1335.0,0.00017812,2]
[404470478,1770171040654,-616.0,0.00017812,2]
[404470479,1770171040663,-1410.0,0.00017812,2]
[404470480,1770171040672,-3482.0,0.00017812,2]
[404470481,1770171040681,-1271.0,0.00017812,2]
[404470482,1770171040691,-150.0,0.00017812,2]
[404470483,1770171040700,-1207.735,0.00017812,2]
[404470484,1770171040709,-917.0,0.00017812,2]
[404470485,1770171040719,-6580.0,0.00017812,2]
[404470486,1770171040732,-3253.0,0.00017812,2]
[404470487,1770171040741,-2445.0,0.00017812,2]
[404470488,1770171040750,-2000.0,0.0001782,2]
[404470489,1770171040760,-2000.0,0.0001782,2]
[404470490,1770171040770,-2554.62926273,0.00017822,2]
[404470491,1770171040780,-2554.62926273,0.00017833,2]
[404470492,1770171040791,-2554.62926273,0.00017844,2]
[404470493,1770171040801,-2554.62926273,0.00017856,2]
[404470494,1770171040811,-2554.62926273,0.00017867,2]
[404470495,1770171040820,-211.11861107,0.00017872,2]
[404470496,1770171040830,-315.82081599,0.00017872,2]
[404470497,1770171040839,-427.3137,0.00017872,2]
[404470498,1770171040850,-2554.62926273,0.00017878,2]
[404470499,1770171040860,-2554.62926273,0.00017889,2]
[404470500,1770171040870,-2500.0,0.00017899,2]
[404470501,1770171040881,-500.0,0.00017899,2]
[404470502,1770171040890,-790.91880112,0.000179,2]
[404470503,1770171040899,-1793.12701742,0.000179,2]
[404470504,1770171040909,-10000.0,0.000179,2]
[404470505,1770171040918,-500.0,0.000179,2]
[404470506,1770171040928,-7508.95672528,0.000179,2]
[404470507,1770171040937,-240.84443721,0.000179,2]
[404470508,1770171040947,-2554.62926273,0.000179,2]
[404470509,1770171040956,-500.0,0.000179,2]
[404470510,1770171040966,-500.0,0.000179,2]
[404470511,1770171040976,-500.0,0.000179,2]
[404470512,1770171040985,-500.0,0.000179,2]
[404470513,1770171040999,-500.0,0.000179,2]
[404470514,1770171041009,-500.0,0.000179,2]
[404470515,1770171041019,-500.0,0.000179,2]
[404470516,1770171041029,-500.0,0.000179,2]
[404470517,1770171041039,-500.0,0.000179,2]
[404470518,1770171041048,-500.0,0.000179,2]
[404470519,1770171041058,-500.0,0.000179,2]
[404470520,1770171041067,-500.0,0.000179,2]
[404470521,1770171041077,-500.0,0.000179,2]
[404470522,1770171041086,-500.0,0.000179,2]
[404470523,1770171041096,-500.0,0.000179,2]
[404470524,1770171041108,-500.0,0.000179,2]
[404470525,1770171041118,-500.0,0.000179,2]
[404470526,1770171041127,-500.0,0.000179,2]
[404470527,1770171041137,-500.0,0.000179,2]
[404470528,1770171041148,-500.0,0.000179,2]
[404470529,1770171041159,-500.0,0.000179,2]
[404470530,1770171041170,-500.0,0.000179,2]
[404470531,1770171041180,-500.0,0.000179,2]
[404470532,1770171041191,-242.04818414,0.000179,2]
[404470533,1770171041201,-2000.0,0.00017945,2]
[404470534,1770171041211,-442.46914122,0.00017947,2]
[404470535,1770171041220,-2000.0,0.00017949,2]
[404470536,1770171041229,-503.13787305,0.00017973,2]
[404470537,1770171041239,-500.0,0.00017973,2]
[404470538,1770171041248,-500.0,0.00017973,2]
[404470539,1770171041258,-500.0,0.00017973,2]
[404470540,1770171041268,-500.0,0.00017973,2]
[404470541,1770171041278,-500.0,0.00017973,2]
[404470542,1770171041289,-500.0,0.00017973,2]
[404470543,1770171041298,-639.06368549,0.00017973,2]
[404470544,1770171041310,-500.0,0.00017973,2]
[404470545,1770171041320,-500.0,0.00017973,2]
[404470546,1770171041330,-500.0,0.00017973,2]
[404470547,1770171041341,-500.0,0.00017973,2]
[404470548,1770171041351,-500.0,0.00017973,2]
[404470549,1770171041360,-500.0,0.00017973,2]
[404470550,1770171041374,-151.0,0.00017997,2]
[404470551,1770171041383,-165.86914318,0.00017997,2]
[404470552,1770171041394,-478.355269,0.00017997,2]
[404470553,1770171041404,-500.0,0.00017998,2]
[404470554,1770171041415,-1683.51186893,0.00017999,5]
[404470555,1770171041425,-396.76821578,0.00017999,2]
[404470556,1770171041435,-500.0,0.00017999,2]
[404470557,1770171041445,-500.0,0.00017999,2]
[404470558,1770171041454,-500.0,0.00017999,2]
[404470559,1770171041465,-500.0,0.00017999,2]
[404470560,1770171041475,-500.0,0.00017999,2]
[404470561,1770171041485,-500.0,0.00017999,2]
[404470562,1770171041495,-500.0,0.00017999,2]
[404470563,1770171041504,-500.0,0.00017999,2]
[404470564,1770171041514,-500.0,0.00017999,2]
[404470565,1770171041524,-500.0,0.00017999,2]
[404470566,1770171041534,-500.0,0.00017999,2]
[404470567,1770171041545,-500.0,0.00017999,2]
[404470568,1770171041554,-300.0,0.00017999,2]
[404470569,1770171041564,-155.353,0.00017999,2]
[404470570,1770171041575,-500.0,0.00017999,2]
[404470571,1770171041585,-500.0,0.00017999,2]
[404470572,1770171041595,-500.0,0.00017999,2]
[404470573,1770171041604,-500.0,0.00017999,2]
[404470574,1770171041614,-500.0,0.00017999,2]
[404470575,1770171041624,-300.0,0.00017999,2]
[404470576,1770171041633,-300.0,0.00017999,2]
[404470577,1770171041643,-397.28877508,0.00017999,2]
[404470578,1770171041653,-300.0,0.00017999,2]
[404470579,1770171041663,-500.0,0.00017999,2]
[404470580,1770171041674,-500.0,0.00017999,2]
[404470581,1770171041683,-500.0,0.00017999,2]
[404470582,1770171041693,-500.0,0.00017999,2]
[404470583,1770171041702,-500.0,0.00017999,2]
[404470584,1770171041712,-500.0,0.00017999,2]
[404470585,1770171041727,-500.0,0.00017999,2]
[404470586,1770171041738,-500.0,0.00017999,2]
[404470587,1770171041747,-500.0,0.00017999,2]
[404470588,1770171041764,-500.0,0.00017999,2]
[404470589,1770171041774,-500.0,0.00017999,2]
[404470590,1770171041784,-500.0,0.00017999,2]
[404470591,1770171041795,-294.74985729,0.00017999,2]
[404470592,1770171041807,-500.0,0.00017999,2]
[404470593,1770171041818,-500.0,0.00017999,2]
[404470594,1770171041829,-500.0,0.00017999,2]
[404470595,1770171041841,-500.0,0.00017999,2]
[404470596,1770171041851,-500.0,0.00017999,2]
[404470597,1770171041862,-500.0,0.00017999,2]
[404470598,1770171041874,-500.0,0.00017999,2]
[404470599,1770171041884,-381.61981706,0.00017999,2]
[404470600,1770171041894,-9812.0,0.00018,2]
[404470601,1770171041904,-3071041.34713229,0.00018,2]
[404470603,1770171043144,-327.365286,0.00018,2]
[404470604,1770171043821,-502.87516167,0.00018,2]
[404470623,1770171045546,-1311.9557303,0.00018,2]
[404470624,1770171045652,-5752.87630477,0.00018,2]
[404470625,1770171045763,-650.16123123,0.00018,2]
[404470626,1770171045775,-2180.0,0.00018,2]
[404470922,1770172231547,-255.51004428,0.0001,2]
[404470925,1770172231558,-519.5245372,0.0001,2]
[404470927,1770172231567,-260.25118994,0.000101,2]
[404470929,1770172231577,-152.11427286,0.000107,2]
[404470933,1770172231604,-116.60239508,0.000107,2]
[404470935,1770172231615,-1029.51855385,0.000108,2]
[404470937,1770172231626,-195.0,0.00011,2]
[404470939,1770172231636,-115.84260713,0.00011,2]
[404470940,1770172231648,-79.15739287,0.00011,2]
[404470941,1770172231657,-195.0,0.00011065,2]
[404470942,1770172231666,-10986.29608119,0.00011065,2]
[404470943,1770172231677,-6614.85458758,0.00011065,2]
[404470944,1770172231686,-2797.64541242,0.00012667,2]
[404470945,1770172231699,-14803.50525635,0.00012667,2]
[404470946,1770172231709,-468.0,0.00013725,2]
[404470947,1770172231718,-17601.15066877,0.0001427,2]
[404470948,1770172231727,-600.0,0.00014404,2]
[404470949,1770172231736,-600.0,0.00014404,2]
[404470950,1770172231747,-600.0,0.00014404,2]
[404470951,1770172231758,-600.0,0.00014404,2]
[404470952,1770172231769,-600.0,0.00014404,2]
[404470954,1770172231779,-468.0,0.00014746,2]
[404470956,1770172231789,-250.0,0.00015,2]
[404470957,1770172231799,-166.66,0.00015087,2]
[404470958,1770172231808,-166.66,0.00015405,2]
[404470959,1770172231818,-166.66,0.00015722,2]
[404470960,1770172231828,-17601.15066877,0.00015872,2]
[404470961,1770172231837,-1365.26382535,0.00016,4]
[404470962,1770172231846,-166.66,0.0001604,2]
[404470963,1770172231855,-2797.87266657,0.000162,5]
[404470964,1770172231864,-166.66,0.00016358,2]
[404470965,1770172231873,-535.76,0.00016453,2]
[404470966,1770172231882,-150.81,0.00016622,2]
[404470968,1770172231891,-166.66,0.00016675,2]
[404470970,1770172231900,-2500.0,0.00016708,2]
[404470972,1770172231908,-590.88,0.00016725,2]
[404470974,1770172231918,-213.82143012,0.00016807,2]
[404470976,1770172231927,-478.355269,0.00016807,2]
[404470977,1770172231936,-191.70249863,0.00016807,2]
[404470979,1770172231946,-456.25511004,0.00016807,2]
[404470980,1770172231955,-500.0,0.00016807,2]
[404470981,1770172231965,-500.0,0.00016807,2]
[404470982,1770172231973,-500.0,0.00016807,2]
[404470983,1770172231983,-500.0,0.00016807,2]
[404470984,1770172231993,-429.99999999,0.00016807,2]
[404470985,1770172232002,-21914.02136252,0.00016808,2]
[404470986,1770172232014,-4584.18,0.00016808,2]
[404470987,1770172232026,-1221.65144163,0.00016808,2]
[404470988,1770172232081,-461.17361602,0.00016808,2]
[404470989,1770172232131,-663.7357518,0.00016808,2]
[404470990,1770172232142,-576.48351554,0.00016808,2]
[404470991,1770172232153,-374.7451931,0.00016808,2]
[404470992,1770172232164,-8115.64789475,0.00016808,2]
[404470993,1770172232174,-377.98672431,0.00016808,2]
[404470994,1770172232206,-995.88708944,0.00016848,2]
[404470995,1770172232217,-2244.11291056,0.00016848,2]
[404470996,1770172232227,-373.92077212,0.00016862,2]
[404470997,1770172232236,-151.0,0.00016898,2]
[404470998,1770172232245,-151.0,0.00016898,2]
[404470999,1770172232254,-151.0,0.00016898,2]
[404471000,1770172232263,-151.0,0.00016898,2]
[404471001,1770172232272,-151.0,0.00016898,2]
[404471002,1770172232282,-151.0,0.00016898,2]
[404471003,1770172232290,-151.0,0.00016898,2]
[404471004,1770172232299,-151.0,0.00016898,2]
[404471005,1770172232308,-151.0,0.00016898,2]
[404471006,1770172232317,-151.0,0.00016898,2]
[404471007,1770172232326,-151.0,0.00016898,2]
[404471008,1770172232335,-500.0,0.00016908,2]
[404471009,1770172232344,-1086.61597909,0.00016999,2]
[404471010,1770172232355,-765.80402091,0.00016999,2]
[404471011,1770172232364,-300.0,0.00017,2]
[404471012,1770172232373,-151.0,0.00017099,2]
[404471013,1770172232382,-322.6107,0.00017099,2]
[404471014,1770172232392,-333.30027417,0.00017099,2]
[404471015,1770172232401,-500.0,0.00017099,2]
[404471016,1770172232410,-200.0,0.00017099,2]
[404471017,1770172232419,-500.0,0.00017099,2]
[404471018,1770172232428,-500.0,0.00017099,2]
[404471019,1770172232438,-500.0,0.00017099,2]